bitfinex/quotes_ETHUSD_20250329
["timestamp","ask_amount","ask_price","bid_price","bid_amount"]
[1743243716873,0.1549723,1881.8,1881.7,0.7607]
[1743243717076,5.31322,1882.1,1881.7,0.7607]
[1743243717265,0.15599757,1882.0,1881.7,6.07504]
[1743243717455,0.15599757,1882.0,1881.8,5.314]
[1743243717652,14.0903738,1882.2,1881.8,5.314]
[1743243717851,5.46990013,1882.1,1881.7,1.368204]
[1743243718058,5.3136,1882.0,1881.7,1.368204]
[1743243718259,0.15548496,1881.9,1881.7,1.368204]
[1743243718795,5.31406,1881.8,1881.5,0.7794]
[1743243719090,0.15445958,1881.7,1881.5,0.7794]
[1743243719973,0.15445958,1881.7,1881.5,6.09428]
[1743243720299,0.15394681,1881.6,1881.5,0.7794]
[1743243720460,5.31418,1881.8,1881.5,0.7794]
[1743243720661,0.15445958,1881.7,1881.5,0.7794]
[1743243721160,5.31446,1881.7,1881.5,0.7794]
[1743243721355,0.15394681,1881.6,1881.5,0.7794]
[1743243722179,5.31413,1881.8,1881.5,0.7794]
[1743243722361,0.15394681,1881.6,1881.5,0.7794]
[1743243722573,5.31413,1881.8,1881.5,0.7794]
[1743243722772,0.15394681,1881.6,1881.5,0.7794]
[1743243722977,5.31413,1881.8,1881.5,0.7794]
[1743243723175,0.15394681,1881.6,1881.5,0.7794]
[1743243723377,5.31413,1881.8,1881.5,0.7794]
[1743243723568,0.15394681,1881.6,1881.5,0.7794]
[1743243723768,5.31413,1881.8,1881.5,0.7794]
[1743243723970,0.15394681,1881.6,1881.5,0.7794]
[1743243724496,5.31413,1881.8,1881.5,0.7794]
[1743243724696,0.15445958,1881.7,1881.5,0.7794]
[1743243725406,0.15445958,1881.7,1881.5,6.09429]
[1743243725804,0.15445958,1881.7,1881.5,11.40918]
[1743243726006,0.15445958,1881.7,1881.5,6.09429]
[1743243726169,10.62801,1881.9,1881.5,6.09429]
[1743243726365,0.15394681,1881.6,1881.5,6.09429]
[1743243726602,5.31396,1881.9,1881.5,6.703719]
[1743243726772,0.15394681,1881.6,1881.5,6.703719]
[1743243727170,5.31406,1881.8,1881.5,6.703719]
[1743243727403,0.15394681,1881.6,1881.5,6.09429]
[1743243727603,5.31406,1881.8,1881.5,6.09429]
[1743243727769,0.15394681,1881.6,1881.5,6.09429]
[1743243728469,5.31406,1881.8,1881.5,0.7794]
[1743243728670,5.31462,1881.6,1881.3,0.8047]
[1743243728897,0.15231478,1881.5,1881.3,0.8047]
[1743243729221,5.46725478,1881.5,1881.1,6.12068]
[1743243729408,5.46725478,1881.5,1881.1,0.8047]
[1743243729569,10.63065,1881.4,1881.0,5.3162]
[1743243729769,8.6569038,1881.3,1880.9,6.12116]
[1743243729965,3.49261276,1881.3,1880.9,6.12111]
[1743243730181,3.49261276,1881.3,1881.0,5.31626]
[1743243730413,0.15128896,1881.3,1881.2,6.12045]
[1743243730634,1.861402,1881.8,1881.4,5.31497]
[1743243730797,0.15334038,1881.7,1881.3,5.31541]
[1743243731001,5.46769038,1881.7,1881.3,5.31541]
[1743243731303,5.31477,1881.6,1881.2,6.12034]
[1743243731526,0.15152448,1881.5,1881.2,6.12034]
[1743243731732,0.15152448,1881.5,1881.2,6.12023]
[1743243732024,8.6556738,1881.7,1881.2,6.12023]
[1743243732235,0.1520373,1881.6,1881.2,6.12023]
[1743243732939,0.1520373,1881.6,1881.3,5.31524]
[1743243733137,0.1520373,1881.6,1881.2,6.12038]
[1743243733340,5.4668873,1881.6,1881.2,6.12038]
[1743243734837,5.31507,1881.5,1881.2,0.8047]
[1743243735038,0.15123115,1881.4,1881.0,6.12096]
[1743243735243,5.31595,1881.2,1880.9,0.8047]
[1743243735538,5.31634,1881.0,1880.7,0.8047]
[1743243735740,10.63355,1880.9,1880.5,0.8047]
[1743243735940,5.31717,1880.7,1880.3,6.12286]
[1743243736240,5.31776,1880.5,1880.1,0.8047]
[1743243736541,0.14562303,1880.4,1880.1,0.8047]
[1743243736770,0.14562303,1880.4,1880.1,11.44205]
[1743243736951,0.14562303,1880.4,1880.2,5.31856]
[1743243737148,6.11609,1880.6,1880.1,6.12337]
[1743243737307,0.14487807,1880.3,1880.1,6.12337]
[1743243737508,5.929389,1880.5,1880.1,6.12337]
[1743243737706,0.14527581,1880.4,1880.1,6.12337]
[1743243737948,0.14527581,1880.4,1880.2,5.31856]
[1743243738325,0.14527581,1880.4,1880.3,5.3183]
[1743243738518,0.7814,1880.8,1880.3,6.381986]
[1743243738708,0.14484415,1880.7,1880.4,5.31799]
[1743243739405,0.14484415,1880.7,1880.1,6.7857]
[1743243739406,8.6591938,1880.5,1880.1,0.8047]
[1743243739604,0.1398992,1880.4,1880.1,6.12339]
[1743243740575,0.1398992,1880.4,1880.2,5.31853]
[1743243740963,8.6586638,1880.7,1880.2,10.63699]
[1743243741161,0.13753347,1880.3,1880.2,10.63699]
[1743243741359,0.86586638,1880.6,1880.2,5.31846]
[1743243741559,0.13753347,1880.3,1880.0,5.31891]
[1743243741759,5.31813,1880.4,1880.0,5.31891]
[1743243741934,0.13712976,1880.2,1880.0,5.31891]
[1743243742137,5.31813,1880.4,1880.0,5.31891]
[1743243742368,0.13661607,1880.1,1880.0,5.31891]
[1743243742843,5.31813,1880.4,1880.0,5.31891]
[1743243743174,0.1374895,1880.3,1880.0,5.31891]
[1743243744069,0.1374895,1880.3,1880.0,10.63794]
[1743243744296,0.1374895,1880.3,1879.9,6.14081]
[1743243744687,0.1374895,1880.3,1880.0,5.3191]
[1743243745047,0.83063929,1880.3,1879.9,11.46004]
[1743243745243,0.83063929,1880.3,1879.9,6.14081]
[1743243745656,0.83063929,1880.3,1879.9,5.31921]
[1743243747057,0.83063929,1880.3,1879.9,10.63851]
[1743243747058,6.14898929,1880.3,1879.9,10.63851]
[1743243747263,0.83063929,1880.3,1880.0,5.3191]
[1743243749993,0.83063929,1880.3,1879.9,10.63841]
[1743243750199,0.83063929,1880.3,1879.9,5.3192]
[1743243750408,0.7814,1880.2,1879.9,5.3192]
[1743243750604,0.7814,1880.2,1879.9,10.63838]
[1743243750903,0.13830644,1880.1,1880.0,5.31914]
[1743243751196,0.7814,1880.2,1880.0,5.31914]
[1743243751401,0.13830644,1880.1,1880.0,5.31914]
[1743243751758,0.69314979,1880.3,1880.0,0.8216]
[1743243752074,1.84067074,1880.7,1880.5,5.31757]
[1743243752267,0.11246729,1880.6,1880.4,5.31794]
[1743243754197,0.11246729,1880.6,1880.5,5.31773]
[1743243754589,17.1099228,1880.9,1880.5,5.31773]
[1743243754892,1.71099228,1880.8,1880.5,5.31773]
[1743243755085,0.11298061,1880.7,1880.5,5.31773]
[1743243757372,8.10947347,1880.9,1880.5,5.31773]
[1743243757904,0.11349387,1880.8,1880.5,5.31773]
[1743243758906,5.43038387,1880.8,1880.4,5.3179]
[1743243759084,0.54303839,1880.7,1880.4,5.3179]
[1743243759307,0.11246729,1880.6,1880.4,5.31784]
[1743243759481,0.11246729,1880.6,1880.5,5.31773]
[1743243759686,7.708599,1880.9,1880.5,5.31773]
[1743243759999,0.11349387,1880.8,1880.5,5.31773]
[1743243760173,0.89570316,1880.8,1880.5,5.31773]
[1743243765022,0.11349387,1880.8,1880.7,5.31716]
[1743243765628,1.07059826,1881.0,1880.8,5.31675]
[1743243766379,1.80015809,1881.0,1880.8,5.31675]
[1743243767577,0.72955983,1881.0,1880.8,5.31665]
[1743243767777,0.797,1881.1,1880.9,5.3166]
[1743243768007,0.797,1881.1,1880.8,5.31665]
[1743243768008,0.797,1881.1,1880.8,5.3168]
[1743243772811,0.8168,1881.3,1880.8,0.8133]
[1743243773122,0.8168,1881.0,1880.7,5.31696]
[1743243774036,0.8168,1881.0,1880.7,5.31694]
[1743243775532,0.8168,1881.0,1880.8,5.31687]
[1743243777113,0.8168,1881.0,1880.7,5.31694]
[1743243777313,0.10303611,1880.9,1880.7,5.31694]
[1743243779040,0.10303611,1880.9,1880.7,5.31716]
[1743243779646,0.10303611,1880.9,1880.6,5.31744]
[1743243779847,5.41964611,1880.9,1880.5,5.3177]
[1743243780758,5.31691,1880.8,1880.4,6.13114]
[1743243780924,6.49392909,1880.8,1880.4,6.13114]
[1743243781126,0.8168,1880.7,1880.4,10.63569]
[1743243781328,6.23699022,1880.7,1880.3,6.38432922]
[1743243781638,8.6588438,1880.6,1880.2,5.31858]
[1743243781843,6.23638564,1880.5,1880.1,5.31886]
[1743243782274,0.91864564,1880.5,1880.1,5.31866]
[1743243782584,0.91864564,1880.5,1880.2,5.31845]
[1743243782732,7.25650149,1880.5,1880.1,5.31866]
[1743243783774,7.64641402,1880.5,1880.1,5.31866]
[1743243784570,10.98773782,1880.5,1880.0,5.31914]
[1743243784874,6.41693378,1880.4,1880.0,5.31897]
[1743243785032,6.51826598,1880.4,1880.0,5.319]
[1743243785975,6.51826598,1880.4,1880.0,10.63793]
[1743243786269,1.20010598,1880.4,1880.1,5.31886]
[1743243786568,6.51817598,1880.4,1880.0,5.31893]
[1743243787551,0.6518176,1880.3,1880.0,5.31893]
[1743243787751,0.75263632,1880.3,1880.0,5.31893]
[1743243788272,0.75263632,1880.3,1880.0,10.63786]
[1743243788437,0.10081872,1880.3,1880.0,10.63786]
[1743243788639,0.10081872,1880.3,1880.1,5.31882]
[1743243789473,0.10081872,1880.3,1880.1,10.63747]
[1743243790669,0.10081872,1880.3,1880.2,5.31858]
[1743243790869,0.8232,1880.7,1880.2,6.11618]
[1743243791073,0.94815138,1880.7,1880.6,5.31745]
[1743243791276,6.2452,1880.9,1880.6,5.31745]
[1743243791839,6.2452,1880.9,1880.7,5.31705]
[1743243792375,0.10141665,1880.8,1880.7,5.31705]
[1743243793981,0.8232,1881.0,1880.7,10.63399]
[1743243794163,0.10141665,1880.8,1880.7,10.63399]
[1743243794359,0.8232,1881.2,1880.9,10.63307]
[1743243794575,0.8232,1881.2,1880.9,10.63292]
[1743243794779,0.8232,1881.2,1880.9,5.31644]
[1743243795541,1.89783035,1881.2,1880.9,5.31644]
[1743243795876,7.21361035,1881.2,1880.8,6.11447]
[1743243796081,0.72136103,1881.1,1880.8,5.31687]
[1743243798980,6.03754103,1881.1,1880.6,5.31738]
[1743243799188,9.4589938,1881.0,1880.6,5.31738]
[1743243799542,9.4589938,1881.0,1880.5,5.31772]
[1743243799543,0.72136103,1881.1,1880.5,0.8148]
[1743243799748,7.29483035,1881.2,1880.8,5.31669]
[1743243799957,7.29483035,1881.2,1880.8,10.63345]
[1743243800676,7.29483035,1881.2,1880.8,5.31669]
[1743243800985,12.61059035,1881.2,1880.8,5.31669]
[1743243801288,13.00805836,1881.2,1880.8,5.31669]
[1743243801458,1.30080584,1881.1,1880.8,5.31669]
[1743243802991,1.30080584,1881.1,1880.7,5.31716]
[1743243803358,6.61685584,1881.1,1880.7,5.31705]
[1743243803660,5.31632,1881.0,1880.6,5.31745]
[1743243803988,0.8012,1880.9,1880.6,5.31724]
[1743243804189,0.8012,1880.9,1880.4,5.31778]
[1743243804190,4.1425238,1880.9,1880.4,5.31778]
[1743243804417,3.3413238,1880.6,1880.3,1.04759924]
[1743243804583,9.4602838,1880.5,1880.1,5.31885]
[1743243804751,9.4602838,1880.5,1880.2,5.31856]
[1743243804752,0.8012,1880.5,1880.2,5.31856]
[1743243804958,0.10029001,1880.4,1880.2,5.31856]
[1743243805698,0.10029001,1880.4,1880.1,5.31874]
[1743243805898,1.74722038,1880.5,1880.3,5.3183]
[1743243806105,0.8012,1880.5,1880.3,5.3183]
[1743243806404,0.8012,1880.5,1880.2,5.31855]
[1743243806916,1.20971892,1880.5,1880.2,5.31855]
[1743243807933,2.29803681,1880.5,1880.2,5.31855]
[1743243808227,3.05958749,1880.5,1880.2,5.31855]
[1743243811438,3.05958749,1880.5,1880.2,10.63688]
[1743243811608,2.29803681,1880.5,1880.2,10.63688]
[1743243811810,2.29803681,1880.5,1880.2,10.63679]
[1743243812021,2.29803681,1880.5,1880.2,5.31833]
[1743243812332,2.29803681,1880.5,1880.3,5.3182]
[1743243812494,1.49683681,1880.5,1880.3,5.3182]
[1743243812697,1.08831789,1880.5,1880.3,5.3182]
[1743243813136,0.8211,1880.9,1880.3,0.61091]
[1743243813435,0.8211,1880.9,1880.5,5.31749]
[1743243813643,0.10082234,1880.8,1880.5,5.31749]
[1743243814199,0.10082234,1880.8,1880.6,5.31743]
[1743243814395,0.10082234,1880.8,1880.7,5.31716]
[1743243815037,5.71552456,1881.0,1880.6,5.31743]
[1743243815208,0.10095511,1880.8,1880.6,10.63468]
[1743243815914,0.10095511,1880.8,1880.7,5.31716]
[1743243816303,1.05025775,1881.0,1880.7,5.31716]
[1743243816516,0.1019551,1880.9,1880.7,5.31716]
[1743243819039,0.1019551,1880.9,1880.7,5.31702]
[1743243820609,0.1019551,1880.9,1880.6,5.31743]
[1743243820937,0.1019551,1880.9,1880.6,10.63486]
[1743243821129,0.1019551,1880.9,1880.7,5.31715]
[1743243822747,16.40440857,1881.1,1880.7,5.31715]
[1743243822946,21.72065857,1881.1,1880.7,5.31715]
[1743243823251,0.8211,1881.1,1880.8,5.31674]
[1743243823453,5.31573,1881.3,1880.8,5.31674]
[1743243823454,11.54983,1881.3,1880.9,5.31649]
[1743243823610,5.31595,1881.2,1880.8,5.31674]
[1743243823817,5.31595,1881.2,1880.7,5.31709]
[1743243824040,1.04041496,1881.1,1880.7,6.459612]
[1743243824319,0.8211,1881.0,1880.7,6.459612]
[1743243824837,0.8211,1881.0,1880.7,6.459582]
[1743243826447,0.8211,1881.0,1880.8,5.31685]
[1743243826828,0.8211,1881.0,1880.7,6.459582]
[1743243829150,6.13749,1881.0,1880.6,0.7909]
[1743243829324,10.6336,1880.9,1880.4,6.10633]
[1743243829528,5.31764,1880.6,1880.2,0.63669072]
[1743243829848,8.6589638,1880.6,1880.2,5.95525072]
[1743243830051,5.31764,1880.6,1880.2,5.95525072]
[1743243830247,5.31764,1880.6,1880.2,12.40099079]
[1743243830438,6.12263,1880.7,1880.2,7.08243079]
[1743243830639,6.12263,1880.7,1880.3,5.31827]
[1743243830852,0.8054,1880.7,1880.3,5.31827]
[1743243831055,5.412,1880.8,1880.5,5.31756]
[1743243831277,5.412,1880.8,1880.6,5.31742]
[1743243831432,5.412,1880.8,1880.5,5.31756]
[1743243832040,5.412,1880.8,1880.6,5.31742]
[1743243832358,5.412,1880.8,1880.5,5.31756]
[1743243832541,5.412,1880.8,1880.5,10.6351]
[1743243832869,0.8054,1880.9,1880.7,5.31713]
[1743243833075,6.2164,1881.0,1880.7,5.31713]
[1743243834132,11.53278,1881.0,1880.6,5.31743]
[1743243834573,6.2164,1881.0,1880.6,10.63467]
[1743243834757,6.2164,1881.0,1880.6,5.31724]
[1743243834967,11.53274,1881.0,1880.6,5.31724]
[1743243835150,13.9276745,1881.0,1880.6,5.31724]
[1743243837182,13.9276745,1881.0,1880.5,5.31772]
[1743243837384,5.31662,1880.9,1880.5,5.31772]
[1743243837745,13.9276745,1881.0,1880.3,6.10679]
[1743243837746,5.31702,1880.8,1880.3,6.10679]
[1743243837985,5.31723,1880.7,1880.3,6.10679]
[1743243838167,5.31723,1880.7,1880.4,0.610679]
[1743243838743,5.31702,1880.8,1880.4,0.610679]
[1743243839580,10.63416,1880.8,1880.4,0.610679]
[1743243840476,5.31719,1880.7,1880.4,0.610679]
[1743243843578,5.31719,1880.7,1880.4,5.928689]
[1743243843778,5.31702,1880.8,1880.4,5.98186374]
[1743243844082,5.31702,1880.8,1880.4,5.928689]
[1743243844247,5.31702,1880.8,1880.4,5.98186373]
[1743243844442,5.31702,1880.8,1880.5,0.5928689]
[1743243844662,5.31702,1880.8,1880.4,5.98186373]
[1743243844981,5.31702,1880.8,1880.4,5.98168373]
[1743243845186,6.35655496,1881.1,1880.7,5.31713]
[1743243845395,5.31614,1881.1,1880.6,6.14604]
[1743243845689,5.31614,1881.1,1880.7,5.31701]
[1743243845860,5.31614,1881.1,1880.7,6.463315]
[1743243846249,5.31614,1881.1,1880.7,7.53396875]
[1743243846450,5.31642,1881.0,1880.7,1.146305]
[1743243847575,5.31614,1881.1,1880.7,6.463465]
[1743243847775,10.6324,1881.1,1880.7,6.463465]
[1743243848173,5.31614,1881.1,1880.7,6.463465]
[1743243848577,5.31614,1881.1,1880.7,1.146305]
[1743243848788,5.31633,1881.0,1880.7,1.146305]
[1743243849854,4.31633,1881.0,1880.7,1.146305]
[1743243857404,4.31633,1881.0,1880.6,6.14584]
[1743243860205,4.31633,1881.0,1880.6,11.46307]
[1743243860380,4.31633,1881.0,1880.6,6.14583]
[1743243860907,4.31633,1881.0,1880.6,11.46308]
[1743243861713,4.31633,1881.0,1880.6,6.14583]
[1743243862019,5.31607,1881.1,1880.7,5.31699]
[1743243862172,6.08237,1881.2,1880.8,5.31682]
[1743243862510,5.31604,1881.1,1880.7,5.31696]
[1743243863071,10.63232,1881.1,1880.7,5.31696]
[1743243863996,5.31604,1881.1,1880.7,5.31696]
[1743243865295,5.31604,1881.1,1880.7,5.91838617]
[1743243865473,5.31604,1881.1,1880.7,11.23543617]
[1743243865883,5.31604,1881.1,1880.7,5.91838617]
[1743243866080,2.01124366,1881.5,1880.7,0.60142617]
[1743243866318,7.62547901,1881.6,1881.2,6.08145]
[1743243866490,2.31074901,1881.6,1881.3,5.31536]
[1743243867100,0.8153,1881.6,1881.3,5.31536]
[1743243867303,5.31444,1881.7,1881.3,5.31536]
[1743243867503,6.12952,1881.8,1881.3,6.51352816]
[1743243867818,11.44385,1881.8,1881.3,11.77567624]
[1743243868322,5.31437,1881.7,1881.3,6.46032624]
[1743243869532,6.12949,1881.8,1881.3,11.82873536]
[1743243869832,6.12949,1881.8,1881.4,5.89896]
[1743243870127,11.44284,1882.0,1881.5,6.13373904]
[1743243870313,6.12907,1882.0,1881.5,6.08059]
[1743243871505,5.31382,1881.9,1881.5,6.08059]
[1743243871833,5.31382,1881.9,1881.6,0.608059]
[1743243872753,11.44278,1882.0,1881.6,0.608059]
[1743243873408,6.12901,1882.0,1881.6,0.608059]
[1743243873832,6.12901,1882.0,1881.6,5.922549]
[1743243874133,11.44275,1882.0,1881.6,0.608059]
[1743243874316,5.31379,1881.9,1881.6,0.608059]
[1743243879854,6.12901,1882.0,1881.6,5.922669]
[1743243880153,6.3756427,1882.1,1881.7,6.6957669]
[1743243880322,11.6890527,1882.1,1881.7,6.6957669]
[1743243880736,5.3135,1882.0,1881.7,1.3815669]
[1743243882058,6.58263144,1882.2,1881.7,6.6957669]
[1743243882367,5.31295,1882.2,1881.8,5.31393]
[1743243882668,5.31265,1882.3,1882.0,0.7893]
[1743243882958,6.37558751,1882.4,1882.0,6.10274]
[1743243883125,5.31267,1882.3,1882.0,0.7893]
[1743243883531,1.06320751,1882.4,1882.0,0.7893]
[1743243883760,1.06320751,1882.4,1881.9,0.531393]
[1743243883761,5.3134,1882.1,1881.7,0.5922669]
[1743243884036,5.31351,1882.0,1881.7,0.5922669]
[1743243884573,10.62684,1882.1,1881.7,0.64540474]
[1743243884736,10.62684,1882.1,1881.7,5.95973474]
[1743243885069,5.31334,1882.1,1881.7,5.95973474]
[1743243885369,10.62678,1882.1,1881.8,0.59597347]
[1743243885539,5.3135,1882.0,1881.8,0.59597347]
[1743243885738,5.3135,1882.0,1881.7,0.5922669]
[1743243885941,5.3135,1882.0,1881.7,0.64540471]
[1743243886475,5.3135,1882.0,1881.7,5.95973471]
[1743243886773,5.3135,1882.0,1881.7,0.64540471]
[1743243888073,5.3135,1882.0,1881.7,0.5922669]
[1743243888273,5.3135,1882.0,1881.6,0.7893]
[1743243888473,5.31379,1881.9,1881.6,0.7893]
[1743243889041,5.3135,1882.0,1881.6,0.7893]
[1743243889342,10.62722,1882.0,1881.6,0.7893]
[1743243889543,10.62722,1882.0,1881.6,2.286182]
[1743243889736,5.3135,1882.0,1881.6,2.286182]
[1743243890336,5.31383,1881.9,1881.6,2.286182]
[1743243892267,5.31383,1881.9,1881.6,0.7893]
[1743243895980,10.62786,1881.9,1881.6,0.7893]
[1743243896806,5.3141,1881.8,1881.6,0.7893]
[1743243896981,5.31434,1881.7,1881.4,1.89436192]
[1743243897313,5.31484,1881.6,1881.4,1.89436192]
[1743243897497,10.62997,1881.5,1881.2,0.8087]
[1743243898018,5.31549,1881.3,1881.0,0.7877]
[1743243898222,5.31589,1881.2,1880.8,7.16687592]
[1743243898423,5.31589,1881.2,1880.8,6.10432]
[1743243898607,6.11999,1881.3,1880.8,11.42108]
[1743243898933,5.31579,1881.2,1880.8,0.7877]
[1743243899098,5.31619,1881.1,1880.8,0.7877]
[1743243899893,5.31618,1881.1,1880.8,0.7877]
[1743243900128,5.31644,1881.0,1880.6,6.10496]
[1743243900331,5.31644,1881.0,1880.7,0.55]
[1743243900840,5.31575,1881.2,1880.9,0.7877]
[1743243901129,6.12002,1881.3,1880.9,0.7877]
[1743243901425,5.31581,1881.2,1880.9,0.7877]
[1743243902016,6.12002,1881.3,1880.9,0.7877]
[1743243902329,7.24284755,1881.3,1880.9,0.7877]
[1743243902735,5.31587,1881.2,1880.9,0.7877]
[1743243903100,10.63187,1881.2,1880.9,0.7877]
[1743243903303,5.31549,1881.3,1880.9,6.10424]
[1743243903630,10.63116,1881.3,1880.9,1.4034403]
[1743243904435,5.31549,1881.3,1880.9,6.7198403]
[1743243904738,10.63109,1881.3,1880.9,6.7198403]
[1743243905034,5.31586,1881.2,1880.9,1.4034403]
[1743243909322,5.31603,1881.1,1880.9,0.7877]
[1743243910844,5.31586,1881.2,1880.9,0.7877]
[1743243912751,5.31604,1881.1,1880.9,0.7877]
[1743243913838,5.31632,1881.0,1880.7,0.8097]
[1743243914539,5.31604,1881.1,1880.7,6.17996369]
[1743243914739,5.31604,1881.1,1880.7,7.16419525]
[1743243915176,5.31604,1881.1,1880.7,7.11103156]
[1743243915474,5.31604,1881.1,1880.7,7.16419525]
[1743243916275,5.31604,1881.1,1880.7,7.11103156]
[1743243916570,5.31604,1881.1,1880.7,7.16419521]
[1743243916780,6.11417,1881.2,1880.7,0.8097]
[1743243916781,4.1498056,1881.2,1880.7,0.8097]
[1743243916945,5.31727,1880.7,1880.5,1.85659563]
[1743243917149,5.31745,1880.6,1880.5,1.04689563]
[1743243917349,5.31846,1880.3,1880.1,0.8097]
[1743243917569,5.31846,1880.3,1879.9,6.1419]
[1743243917875,5.31813,1880.4,1879.9,11.46108]
[1743243918174,5.31779,1880.5,1880.1,5.31886]
[1743243918672,12.497172,1880.6,1880.2,5.31855]
[1743243918987,12.497172,1880.6,1880.1,5.37179288]
[1743243918988,12.497172,1880.6,1880.1,5.31861]
[1743243919190,5.31789,1880.5,1880.1,5.31861]
[1743243919395,10.63625,1880.4,1880.0,0.55]
[1743243919692,5.31804,1880.4,1880.1,0.053183]
[1743243919998,5.31804,1880.4,1880.0,5.869]
[1743243921112,6.0357062,1880.5,1880.0,11.1879]
[1743243921303,5.31773,1880.5,1880.1,5.37199293]
[1743243921609,5.31773,1880.5,1880.1,5.31881]
[1743243921799,5.31773,1880.5,1880.1,5.37199292]
[1743243922581,9.4672756,1880.6,1880.1,10.69058292]
[1743243922803,6.11587,1880.6,1880.2,5.31851]
[1743243923004,7.29995348,1880.6,1880.2,5.31851]
[1743243923608,12.61766348,1880.6,1880.1,5.31859]
[1743243923808,7.29995348,1880.6,1880.1,5.37177283]
[1743243924312,5.31792,1880.5,1880.0,5.86914]
[1743243924486,5.31804,1880.4,1880.0,5.86914]
[1743243925815,5.31804,1880.4,1880.0,0.55]
[1743243926108,5.31804,1880.4,1880.0,5.86904]
[1743243927909,5.31853,1880.3,1879.9,0.8226]
[1743243928078,11.4659,1880.3,1879.9,0.8226]
[1743243928913,11.4659,1880.3,1879.7,1.87091774]
[1743243928914,5.31929,1880.0,1879.7,1.87091774]
[1743243929110,6.14809,1880.0,1879.7,1.04601774]
[1743243929282,5.3191,1880.1,1879.7,1.04601774]
[1743243929283,5.3191,1880.1,1879.7,5.3198]
[1743243929481,10.6382,1880.1,1879.7,5.3198]
[1743243929690,10.63813,1880.1,1879.6,5.32007]
[1743243930012,10.63813,1880.1,1879.6,13.64017]
[1743243930317,5.31897,1880.1,1879.7,5.31983]
[1743243930476,5.31897,1880.1,1879.7,5.37302448]
[1743243930677,5.31897,1880.1,1879.7,5.31983]
[1743243931177,5.31897,1880.1,1879.7,5.37302449]
[1743243931414,5.31897,1880.1,1879.6,9.766727]
[1743243931917,5.31918,1880.0,1879.6,9.766727]
[1743243932316,5.31918,1880.0,1879.6,8.32022]
[1743243932515,5.31918,1880.0,1879.6,3.0]
[1743243933019,5.31947,1879.9,1879.6,3.0]
[1743243933219,5.31887,1880.1,1879.6,8.32027]
[1743243933513,11.05587056,1880.1,1879.7,5.31988]
[1743243933694,5.31917,1880.0,1879.6,8.32023]
[1743243934087,5.31917,1880.0,1879.6,8.37328649]
[1743243934500,5.73689056,1880.1,1879.6,13.69330649]
[1743243934698,5.73689056,1880.1,1879.7,5.31986]
[1743243935615,11.05602056,1880.1,1879.6,8.32002]
[1743243935821,11.05602056,1880.1,1879.6,8.37321647]
[1743243936114,11.05602056,1880.1,1879.6,13.69331647]
[1743243936290,11.05602056,1880.1,1879.6,13.64012]
[1743243936490,11.05594056,1880.1,1879.7,5.31998]
[1743243937023,5.31926,1880.0,1879.6,8.32002]
[1743243938309,7.22837506,1880.0,1879.6,8.32002]
[1743243938612,8.6712256,1879.8,1879.4,9.40082279]
[1743243938815,10.63897,1879.9,1879.4,9.45394351]
[1743243939021,5.31943,1879.9,1879.5,5.32054]
[1743243939185,10.63912,1879.9,1879.4,9.40074279]
[1743243939390,12.22903007,1879.9,1879.4,14.72139279]
[1743243939594,5.31977,1879.8,1879.4,9.40074279]
[1743243940218,4.1549056,1879.8,1879.4,1.08011279]
[1743243940402,8.6717956,1879.6,1879.4,1.08011279]
[1743243940607,8.6717956,1879.6,1879.2,5.3213]
[1743243940910,6.12411,1879.5,1879.1,6.14438]
[1743243942623,5.32114,1879.3,1878.9,15.08089]
[1743243942821,5.32094,1879.4,1879.0,5.32194]
[1743243943011,5.32094,1879.4,1879.0,7.062223]
[1743243944014,9.4755756,1879.5,1879.1,0.05321149]
[1743243944519,9.4755756,1879.5,1879.1,5.32166]
[1743243944724,14.7964056,1879.5,1879.0,7.062133]
[1743243944904,5.32096,1879.4,1879.0,5.32185]
[1743243945411,5.32119,1879.3,1878.9,6.69495]
[1743243945792,5.32096,1879.4,1878.9,12.017]
[1743243946000,5.32096,1879.4,1878.9,6.69475]
[1743243946195,6.12508,1879.2,1878.8,4.09251899]
[1743243946432,0.8035,1879.2,1878.9,5.37540695]
[1743243946620,6.12435,1879.4,1878.9,5.37540695]
[1743243947139,5.32117,1879.3,1878.9,5.37540695]
[1743243947335,5.32117,1879.3,1878.9,5.32219]
[1743243947696,10.64255,1879.3,1878.9,5.32219]
[1743243947909,6.465775,1879.3,1878.9,5.37540687]
[1743243948119,6.465775,1879.3,1878.9,5.32219]
[1743243948331,11.787025,1879.3,1878.9,5.32219]
[1743243948705,6.465775,1879.3,1878.9,5.37528687]
[1743243949030,5.32117,1879.3,1878.9,5.37528684]
[1743243949319,5.32117,1879.3,1879.0,0.8082]
[1743243949897,5.32117,1879.3,1878.9,5.37546686]
[1743243950109,12.43112343,1879.8,1879.3,5.32099]
[1743243950444,10.64034,1879.7,1879.2,6.12958]
[1743243950600,5.32043,1879.6,1879.2,0.8082]
[1743243950990,5.32043,1879.6,1879.2,6.12956]
[1743243951221,10.6409,1879.6,1879.2,0.8082]
[1743243951532,5.32057,1879.5,1879.2,0.8082]
[1743243951704,5.32043,1879.6,1879.2,1.953328]
[1743243952035,5.32041,1879.6,1879.2,7.274728]
[1743243952396,10.64089,1879.6,1879.2,7.274728]
[1743243952599,6.09019,1879.5,1879.1,6.12972]
[1743243953128,6.09019,1879.5,1879.0,11.66271043]
[1743243953129,5.321,1879.4,1879.0,6.34074043]
[1743243953492,5.321,1879.4,1879.0,11.66260043]
[1743243954338,5.32056,1879.5,1879.1,6.18293065]
[1743243954631,6.09,1879.6,1879.2,5.32126]
[1743243954936,7.231016,1879.6,1879.1,6.12972]
[1743243955136,5.32071,1879.5,1879.1,0.86141062]
[1743243955431,5.32088,1879.4,1879.1,0.8082]
[1743243955936,5.32071,1879.5,1879.1,6.12975]
[1743243956297,5.32071,1879.5,1879.1,6.12974]
[1743243956516,10.64145,1879.5,1879.1,0.8082]